bitfinex-derivatives/quotes_BTCF0:USTF0_20250222
["timestamp","ask_amount","ask_price","bid_price","bid_amount"]
[1740191788225,0.2603348,96410.0,96409.0,0.0636]
[1740191788417,0.2603348,96410.0,96409.0,0.0326]
[1740191788925,0.31078089,96410.0,96409.0,0.002]
[1740191791125,0.31078089,96410.0,96409.0,0.2094661]
[1740191797124,0.2603348,96410.0,96409.0,0.4577756]
[1740191801134,0.2603348,96410.0,96409.0,0.2094661]
[1740191802334,0.2603348,96410.0,96409.0,0.5702661]
[1740191804228,0.2603348,96410.0,96409.0,0.2094661]
[1740191804431,0.2603348,96410.0,96409.0,0.5702661]
[1740191812742,0.31077676,96410.0,96409.0,0.5702661]
[1740191814741,0.31077676,96410.0,96409.0,0.5692661]
[1740191816741,0.2603348,96410.0,96409.0,0.5692661]
[1740191817242,0.2922348,96410.0,96409.0,0.5692661]
[1740191817437,0.2922348,96410.0,96409.0,0.5702661]
[1740191817942,0.2912348,96410.0,96409.0,0.5692661]
[1740191818242,0.2922348,96410.0,96409.0,0.5692661]
[1740191818444,0.2922348,96410.0,96409.0,0.2084661]
[1740191818744,0.2922348,96410.0,96409.0,0.5692661]
[1740191820745,0.2603348,96410.0,96409.0,0.5692661]
[1740191825843,0.2603348,96410.0,96409.0,0.5792661]
[1740191825844,0.001,96410.0,96409.0,0.5792661]
[1740191827049,0.2074639,96410.0,96409.0,0.5792661]
[1740191827239,0.2084639,96410.0,96409.0,0.5792661]
[1740191827647,0.2074639,96410.0,96409.0,0.5792661]
[1740191827835,0.2084639,96410.0,96409.0,0.5792661]
[1740191828445,0.2084639,96410.0,96409.0,0.5782661]
[1740191828642,0.001,96410.0,96409.0,0.5782661]
[1740191830064,0.001,96410.0,96409.0,0.5884146]
[1740191830347,0.001,96410.0,96409.0,0.77481273]
[1740191830560,0.0439381,96419.0,96418.0,0.2074467]
[1740191830751,0.0439381,96419.0,96418.0,0.5782467]
[1740191831145,0.0439381,96419.0,96418.0,0.6100467]
[1740191831846,0.0439381,96419.0,96418.0,0.6110467]
[1740191832045,0.0338,96419.0,96418.0,0.6110467]
[1740191832361,0.0348,96419.0,96418.0,0.6110467]
[1740191833950,0.0338,96419.0,96418.0,0.6110467]
[1740191838344,0.0338,96419.0,96418.0,0.6100467]
[1740191843560,0.2412445,96419.0,96418.0,0.6100467]
[1740191843861,0.0338,96419.0,96418.0,0.6100467]
[1740191846759,0.0338,96419.0,96418.0,0.9708467]
[1740191846961,0.0338,96419.0,96418.0,0.9390467]
[1740191850259,0.2412445,96419.0,96418.0,0.9390467]
[1740191850960,0.0338,96419.0,96418.0,0.9390467]
[1740191851655,0.2412445,96419.0,96418.0,0.9390467]
[1740191853064,0.0338,96419.0,96418.0,0.9390467]
[1740191853768,0.2412445,96419.0,96418.0,0.9390467]
[1740191854155,0.0338,96419.0,96418.0,0.9390467]
[1740191856661,0.0338,96419.0,96418.0,1.35115958]
[1740191862275,0.0036,96419.0,96418.0,1.35115958]
[1740191862567,0.0307,96425.0,96424.0,0.2074338]
[1740191862771,0.0307,96425.0,96424.0,0.29132093]
[1740191863663,0.0307,96425.0,96424.0,0.29232093]
[1740191864471,0.15555931,96442.0,96424.0,0.0744]
[1740191864668,0.41481671,96442.0,96441.0,0.5681972]
[1740191865072,0.36296601,96442.0,96441.0,0.5681972]
[1740191865466,0.37344089,96442.0,96441.0,0.5681972]
[1740191865861,0.37342929,96442.0,96441.0,0.5681972]
[1740191866481,0.16603419,96442.0,96441.0,0.5681972]
[1740191866773,0.16603419,96442.0,96441.0,0.5791972]
[1740191867073,0.16603419,96442.0,96441.0,0.5801972]
[1740191867275,0.37342929,96442.0,96441.0,0.5801972]
[1740191868068,0.21786998,96442.0,96441.0,0.5801972]
[1740191871077,0.01047488,96442.0,96441.0,0.6873172]
[1740191871279,0.0944,96443.0,96441.0,0.47992]
[1740191871469,0.0944,96443.0,96442.0,0.2173951]
[1740191872372,0.3017929,96443.0,96442.0,0.2173951]
[1740191873281,0.3017929,96443.0,96442.0,0.2183951]
[1740191873471,0.0317,96443.0,96442.0,0.2183951]
[1740191873670,0.2073881,96446.0,96442.0,0.0628486]
[1740191873870,0.2073881,96446.0,96445.0,0.2173886]
[1740191875281,0.2073881,96446.0,96445.0,0.2486886]
[1740191876080,0.2179876,96446.0,96445.0,0.2486886]
[1740191876274,0.2179876,96446.0,96445.0,0.2496886]
[1740191876674,0.2179876,96446.0,96445.0,0.2193886]
[1740191879872,0.2179876,96446.0,96445.0,0.5801886]
[1740191884584,0.217986,96446.0,96445.0,0.5801886]
[1740191885678,0.0105995,96446.0,96445.0,0.5801886]
[1740191885878,0.0319,96447.0,96445.0,0.3728]
[1740191886078,0.0319,96447.0,96446.0,0.2073865]
[1740191886279,0.2392843,96447.0,96446.0,0.2073865]
[1740191886679,0.0319,96447.0,96446.0,0.2073865]
[1740191886986,0.2392843,96447.0,96446.0,0.2073865]
[1740191887389,0.2392843,96447.0,96446.0,0.2083865]
[1740191888385,0.24976395,96447.0,96446.0,0.2083865]
[1740191888577,0.24976395,96447.0,96446.0,0.2093865]
[1740191889184,0.04237965,96447.0,96446.0,0.2193865]
[1740191890277,0.05339029,96464.0,96446.0,0.0436]
[1740191890494,0.05339029,96464.0,96459.0,0.2591905]
[1740191890495,0.2591976,96460.0,96459.0,0.2591905]
[1740191891291,0.2591976,96460.0,96459.0,0.2073521]
[1740191892091,0.26962632,96460.0,96459.0,0.2073521]
[1740191892279,0.26962632,96460.0,96459.0,0.2083521]
[1740191893993,0.26962632,96460.0,96459.0,0.2093521]
[1740191896987,0.01042872,96460.0,96459.0,0.2093521]
[1740191897298,0.2402557,96461.0,96460.0,0.2073564]
[1740191898088,0.2505411,96461.0,96460.0,0.2073564]
[1740191898400,0.2073525,96462.0,96460.0,0.011]
[1740191898595,0.0624,96463.0,96462.0,0.2073521]
[1740191898797,0.0624,96463.0,96462.0,0.2173521]
[1740191898997,0.2697499,96463.0,96462.0,0.2173521]
[1740191900401,0.28005451,96463.0,96462.0,0.2173521]
[1740191900586,0.28005451,96463.0,96462.0,0.5791521]
[1740191901186,0.28005451,96463.0,96462.0,0.5801521]
[1740191903103,0.24815451,96463.0,96462.0,0.6857921]
[1740191903304,0.27925451,96463.0,96462.0,0.6857921]
[1740191903801,0.0305,96463.0,96462.0,0.6857921]
[1740191904997,0.0305,96463.0,96462.0,0.6837921]
[1740191905205,0.0305,96463.0,96462.0,0.6857921]
[1740191905599,0.15555931,96464.0,96463.0,0.2073499]
[1740191905802,0.15555931,96464.0,96463.0,0.2173499]
[1740191907902,0.0321,96468.0,96467.0,0.2073413]
[1740191908096,0.0321,96468.0,96467.0,0.5781413]
[1740191908297,0.0321,96468.0,96467.0,0.6082413]
[1740191908898,0.2394392,96468.0,96467.0,0.6082413]
[1740191909299,0.2394392,96468.0,96467.0,0.6092413]
[1740191909508,0.2394392,96468.0,96467.0,0.6102413]
[1740191909802,0.0321,96468.0,96467.0,0.6102413]
[1740191910003,0.0321,96468.0,96467.0,0.6432413]
[1740191910796,0.0321,96468.0,96467.0,0.3628]
[1740191910797,0.2394392,96468.0,96467.0,0.3628]
[1740191911002,0.2725392,96468.0,96467.0,0.5701413]
[1740191911205,0.2725392,96468.0,96467.0,0.5801413]
[1740191912007,0.2725392,96468.0,96467.0,0.6853413]
[1740191913900,0.2725392,96468.0,96467.0,0.6753413]
[1740191914303,0.2725392,96468.0,96467.0,0.6753813]
[1740191914612,0.2725392,96468.0,96467.0,0.6853813]
[1740191919297,0.2394392,96468.0,96467.0,0.6853813]
[1740191919504,0.2394392,96468.0,96467.0,0.7508813]
[1740191921002,0.18727782,96494.0,96478.0,0.2073177]
[1740191921203,0.0301,96486.0,96478.0,0.5781177]
[1740191921604,0.0301,96486.0,96478.0,0.6424177]
[1740191921906,0.0301,96486.0,96478.0,0.6731177]
[1740191922213,0.0301,96486.0,96478.0,0.6751177]
[1740191922412,0.0821216,96493.0,96478.0,0.6751177]
[1740191922597,0.0301,96486.0,96478.0,0.6751177]
[1740191924305,0.0301,96486.0,96478.0,0.6429177]
[1740191926515,0.0301,96486.0,96478.0,0.6329177]
[1740191926705,0.0301,96486.0,96478.0,0.6429177]
[1740191926909,0.0301,96486.0,96478.0,0.6329177]
[1740191927207,0.0301,96486.0,96478.0,0.6429177]
[1740191928099,0.0301,96486.0,96485.0,0.2073026]
[1740191928410,0.0301,96486.0,96485.0,0.3218226]
[1740191929311,0.0301,96486.0,96485.0,0.3228226]
[1740191929907,0.0301,96486.0,96485.0,0.3238226]
[1740191933808,0.0301,96486.0,96485.0,0.50974591]
[1740191936520,0.04094419,96493.0,96485.0,0.50974591]
[1740191936521,0.04094419,96493.0,96492.0,0.2072876]
[1740191936819,0.04094419,96493.0,96492.0,0.5680876]
[1740191937813,0.04094419,96493.0,96492.0,0.5690876]
[1740191938116,0.04094419,96493.0,96492.0,0.5700876]
[1740191941119,0.0303,96493.0,96492.0,0.5700876]
[1740191945916,0.0303,96493.0,96492.0,0.5690876]
[1740191946216,0.0303,96493.0,96492.0,0.5700876]
[1740191947925,0.010326,96496.0,96495.0,0.2072812]
[1740191948125,0.1,96500.0,96494.0,0.0518207]
[1740191948321,0.1,96500.0,96499.0,0.2072726]
[1740191949723,0.1,96500.0,96499.0,0.2082726]
[1740191950135,0.11286183,96500.0,96499.0,0.2082726]
[1740191950532,0.11286183,96500.0,96499.0,0.2092726]
[1740191951328,0.32013223,96500.0,96499.0,0.002]
[1740191952826,0.2072833,96494.0,96493.0,0.18592331]
[1740191953221,0.2399833,96494.0,96493.0,0.18592331]
[1740191954124,0.2399833,96494.0,96493.0,0.18692331]
[1740191954421,0.2409833,96494.0,96493.0,0.18792331]
[1740191954818,0.2409833,96494.0,96493.0,0.002]
[1740191955620,0.2409833,96494.0,96493.0,0.2092855]
[1740191955827,0.2409833,96494.0,96493.0,0.2395855]
[1740191956130,0.0337,96494.0,96493.0,0.2395855]
[1740191957129,0.2409833,96494.0,96493.0,0.2395855]
[1740191961232,0.2409833,96494.0,96493.0,0.002]
[1740191962428,0.2409833,96494.0,96493.0,0.25005296]
[1740191967136,0.2409833,96494.0,96493.0,0.002]
[1740191967331,0.2738833,96494.0,96493.0,0.002]
[1740191968334,0.2738833,96494.0,96493.0,0.3628]
[1740191971641,0.2072919,96490.0,96489.0,0.04145]
[1740191972032,0.2072983,96487.0,96486.0,0.2072998]
[1740191972227,0.2073005,96486.0,96485.0,0.18597082]
[1740191972641,0.2073005,96486.0,96485.0,0.39327342]
[1740191972836,0.2063005,96486.0,96485.0,0.18597082]
[1740191973426,0.5671005,96486.0,96485.0,0.18597082]
[1740191973733,0.5671005,96486.0,96480.0,0.24805296]
[1740191973734,0.2073112,96481.0,96480.0,0.24805296]
[1740191973936,0.2073198,96477.0,96476.0,0.00015553]
[1740191974127,0.5681198,96477.0,96476.0,0.00015553]
[1740191974333,0.5671198,96477.0,96476.0,0.00015553]
[1740191974539,0.5661198,96477.0,96476.0,0.00015553]
[1740191974927,0.5651198,96477.0,96476.0,0.00015553]
[1740191975331,0.5681198,96477.0,96476.0,0.00115553]
[1740191975532,0.5701198,96477.0,96476.0,0.00215553]
[1740191998760,0.3658,96477.0,96445.0,0.10372]
[1740191998962,0.3658,96477.0,96452.0,0.05339825]
[1740191998963,0.0518414,96456.0,96452.0,0.05339825]
[1740191999163,0.2592138,96454.0,96453.0,0.2073708]
[1740191999562,0.27249959,96454.0,96453.0,0.2073708]
[1740191999961,0.27249959,96454.0,96453.0,0.2700708]
[1740192000467,0.2592138,96454.0,96453.0,0.2700708]
[1740192000674,0.2602138,96454.0,96453.0,0.2700708]
[1740192002163,0.2602138,96454.0,96453.0,0.0627]
[1740192002761,0.2602138,96454.0,96453.0,0.2700714]
[1740192003162,0.2602138,96454.0,96453.0,0.0627]
[1740192003569,0.2602138,96454.0,96453.0,0.2700714]
[1740192003763,0.2602138,96454.0,96453.0,0.0627]
[1740192005070,0.2602138,96454.0,96453.0,0.2700714]
[1740192016770,0.2602138,96454.0,96453.0,0.0627]
[1740192017273,0.2602138,96454.0,96453.0,0.0306]
[1740192017474,0.2602138,96454.0,96453.0,0.2379714]
[1740192023279,0.2602138,96454.0,96453.0,0.2691714]
[1740192026381,0.2602138,96454.0,96453.0,0.2379714]
[1740192036091,0.2602138,96454.0,96453.0,0.6426661]
[1740192037789,0.2083714,96454.0,96453.0,0.6426661]
[1740192041595,0.001,96454.0,96453.0,0.6426661]
[1740192041994,0.2083714,96454.0,96453.0,0.6426661]
[1740192043591,0.001,96454.0,96453.0,0.6526661]
[1740192044599,0.001,96454.0,96453.0,0.55839713]
[1740192047203,0.001,96454.0,96453.0,0.57085007]
[1740192047508,0.001,96454.0,96453.0,0.93165007]
[1740192048409,0.001,96454.0,96453.0,0.57085007]
[1740192048611,0.001,96454.0,96453.0,0.93165007]
[1740192049310,0.001,96454.0,96453.0,0.62122434]
[1740192052002,0.001,96454.0,96453.0,0.6087714]
[1740192053202,0.001,96454.0,96453.0,1.00933083]
[1740192054503,0.00015442,96463.0,96462.0,0.2073521]
[1740192054709,0.00015442,96463.0,96462.0,0.5781521]
[1740192055508,0.00415442,96463.0,96462.0,0.5781521]
[1740192057218,0.00415442,96463.0,96462.0,1.35218353]
[1740192057920,2e-08,96463.0,96462.0,1.57178353]
[1740192058113,2e-08,96463.0,96462.0,1.87178353]
[1740192060713,2e-08,96463.0,96462.0,1.57178353]
[1740192061819,2e-08,96463.0,96462.0,1.19831153]
[1740192062317,0.0322,96484.0,96483.0,0.2073069]
[1740192062720,0.0322,96484.0,96483.0,0.2394069]
[1740192063309,0.0322,96484.0,96483.0,0.2494069]
[1740192063711,0.0322,96484.0,96483.0,0.2504069]
[1740192063914,0.00155543,96486.0,96485.0,0.2073026]
[1740192064113,0.00155543,96486.0,96485.0,0.2173026]
[1740192065313,0.00155543,96486.0,96485.0,0.2183026]
[1740192065820,0.00355543,96486.0,96485.0,0.2193026]
[1740192066514,0.00355543,96486.0,96485.0,0.23550443]
[1740192068423,0.00355543,96486.0,96485.0,0.2193026]
[1740192069624,0.00355543,96486.0,96485.0,0.23550462]
[1740192070620,0.00355543,96486.0,96485.0,0.2193026]
[1740192077122,0.00355543,96486.0,96485.0,0.5801026]
[1740192089835,0.21085593,96486.0,96485.0,0.5801026]
[1740192090536,0.21085593,96486.0,96485.0,0.889137]
[1740192091737,0.00355543,96486.0,96485.0,0.889137]
[1740192092034,0.21085593,96486.0,96485.0,0.889137]
[1740192092231,0.21085593,96486.0,96485.0,0.6718344]
[1740192092637,0.21085593,96486.0,96485.0,0.879137]
[1740192095829,0.21085593,96486.0,96485.0,0.518337]
[1740192096729,0.00355543,96486.0,96485.0,0.518337]
[1740192097234,0.21085593,96486.0,96485.0,0.518337]
[1740192098331,0.00355543,96486.0,96485.0,0.518337]
[1740192098638,0.21085593,96486.0,96485.0,0.518337]
[1740192099033,0.21085593,96486.0,96485.0,0.2093026]
[1740192105341,0.00355543,96486.0,96485.0,0.5801026]
[1740192105637,0.00355543,96486.0,96485.0,0.6131026]
[1740192107230,0.00355543,96486.0,96485.0,0.62508217]
[1740192108035,0.00355543,96486.0,96485.0,0.6131026]
[1740192110134,0.00355543,96486.0,96485.0,1.01651378]
[1740192111942,0.00355543,96486.0,96485.0,1.0284135]
[1740192113337,0.00355543,96486.0,96485.0,0.62500232]
[1740192115547,0.00355543,96486.0,96485.0,0.6131026]
[1740192116341,0.00355543,96486.0,96485.0,0.7167026]
[1740192116542,0.00355543,96486.0,96485.0,0.72893845]
[1740192120149,0.002,96486.0,96485.0,0.72893845]
[1740192121851,0.002,96486.0,96485.0,1.1481656]
[1740192123039,0.07794961,96498.0,96497.0,0.2072769]
[1740192123244,0.07794961,96498.0,96497.0,0.22347808]
[1740192123841,0.07794961,96498.0,96497.0,0.2072769]
[1740192124442,0.07994961,96498.0,96497.0,0.2082769]
[1740192124639,0.07994961,96498.0,96497.0,0.2092769]
[1740192129144,0.01434961,96498.0,96497.0,0.2092769]
[1740192131355,0.002,96498.0,96497.0,0.2092769]
[1740192134255,0.002,96498.0,96497.0,0.2192769]
[1740192138357,0.002,96498.0,96497.0,0.2092769]
[1740192138658,0.002,96498.0,96497.0,0.2192769]
[1740192139075,0.002,96498.0,96497.0,0.002]
[1740192139076,0.2092747,96498.0,96497.0,0.002]
[1740192139257,0.002,96498.0,96488.0,0.0518235]
[1740192139455,0.0518192,96497.0,96489.0,0.0518234]
[1740192139760,0.0518192,96497.0,96493.0,0.2072822]
[1740192139761,0.2072861,96494.0,96493.0,0.2072822]
[1740192140153,0.2401861,96494.0,96493.0,0.2072822]
[1740192141156,0.2401861,96494.0,96493.0,0.2082822]
[1740192141752,0.2401861,96494.0,96493.0,0.2092822]
[1740192144964,0.2401861,96494.0,96493.0,0.22548401]
[1740192148066,0.2401861,96494.0,96493.0,0.2092822]
[1740192152365,0.2401861,96494.0,96493.0,0.2419822]
[1740192159582,0.2401861,96494.0,96493.0,0.0347]
[1740192159877,0.2401861,96494.0,96493.0,0.2419855]
[1740192160577,0.0329,96494.0,96490.0,0.24731247]
[1740192160775,0.2072897,96491.0,96490.0,0.24731247]
[1740192161165,0.2390897,96491.0,96490.0,0.24731247]
[1740192161770,0.2390897,96491.0,96490.0,0.24831247]
[1740192162370,0.2400897,96491.0,96490.0,0.24931247]
[1740192162571,0.6008897,96491.0,96490.0,0.24931247]
[1740192162973,0.6028897,96491.0,96490.0,0.45660437]
[1740192163173,0.6028897,96491.0,96490.0,0.24931247]
[1740192163474,0.6028897,96491.0,96490.0,0.03478332]
[1740192164373,0.6028897,96491.0,96490.0,0.02789544]
[1740192164673,0.6028897,96491.0,96490.0,0.002]
[1740192169873,0.6028897,96491.0,96490.0,1e-07]
[1740192172874,0.65330187,96491.0,96490.0,1e-07]
[1740192173085,0.87370187,96491.0,96490.0,1e-07]
[1740192176683,0.8232897,96491.0,96490.0,1e-07]
[1740192177390,1.1840897,96491.0,96490.0,1e-07]
[1740192177581,2.6840897,96491.0,96490.0,1e-07]
[1740192178180,1.9624897,96491.0,96490.0,1e-07]
[1740192178381,2.6840897,96491.0,96490.0,1e-07]
[1740192180282,0.2072983,96487.0,96486.0,0.0367337]
[1740192180589,2.47732001,96491.0,96475.0,0.0325]
[1740192180789,0.568122,96476.0,96475.0,0.0325]
[1740192181385,0.566122,96476.0,96475.0,0.0325]
[1740192182192,0.568122,96476.0,96475.0,0.0335]
[1740192183695,0.571122,96476.0,96475.0,0.0345]
[1740192188592,0.601822,96476.0,96475.0,0.0345]
[1740192191297,0.571122,96476.0,96475.0,0.0345]
[1740192193193,2.071122,96476.0,96475.0,0.0345]
[1740192194804,0.2073306,96472.0,96471.0,0.04146]
[1740192195104,0.0518316,96474.0,96463.0,0.0311]
[1740192195303,0.5681478,96464.0,96463.0,0.0311]
[1740192195604,0.2073693,96454.0,96450.0,0.207377]
[1740192195795,0.21906219,96454.0,96451.0,0.0319]
[1740192196190,0.21906219,96454.0,96453.0,0.3928978]
[1740192197002,0.21806219,96454.0,96453.0,0.3928978]
[1740192197304,0.21806219,96454.0,96453.0,0.2073714]
[1740192197895,0.21906219,96454.0,96453.0,0.2073714]
[1740192198705,0.2073714,96453.0,96452.0,0.0644]
[1740192200205,0.2083714,96453.0,96452.0,0.0644]
[1740192200597,0.2083714,96453.0,96452.0,0.2717736]
[1740192202804,0.2083714,96453.0,96452.0,0.0644]
[1740192206699,0.001,96453.0,96452.0,0.2717736]
[1740192207003,0.2083714,96453.0,96452.0,0.2717736]
[1740192207799,0.001,96453.0,96452.0,0.2717736]
[1740192209013,0.2083714,96453.0,96452.0,0.2717736]
[1740192210209,0.001,96453.0,96452.0,0.2717736]
[1740192218532,0.001,96453.0,96452.0,0.68391126]
[1740192219427,0.0518412,96456.0,96452.0,0.47653766]
[1740192219735,0.0518412,96456.0,96455.0,0.2073671]
[1740192219736,0.2592109,96456.0,96455.0,0.2073671]
[1740192219929,0.2073697,96456.0,96455.0,0.2073671]
[1740192220631,0.2083697,96456.0,96455.0,0.2073671]
[1740192220832,0.00052001,96481.0,96455.0,0.01]
[1740192221021,0.207308,96483.0,96474.0,0.2073263]
[1740192221224,0.01119982,96476.0,96475.0,0.2073241]
[1740192221418,0.0333,96491.0,96478.0,0.2073177]
[1740192221623,0.16644593,96479.0,96478.0,0.5681177]
[1740192221926,0.01139284,96479.0,96478.0,0.6010177]
[1740192222126,0.18675781,96484.0,96483.0,0.2073069]
[1740192222531,0.18675781,96484.0,96483.0,0.22350945]
[1740192223530,0.18975781,96484.0,96483.0,0.22450945]
[1740192224235,0.18975781,96484.0,96483.0,0.25720945]
[1740192224434,0.19175781,96484.0,96483.0,0.25820945]
[1740192224731,0.19175781,96484.0,96483.0,0.2420069]
[1740192225636,0.005,96484.0,96483.0,0.44353952]
[1740192227126,0.2123048,96484.0,96483.0,0.20353262]
[1740192227435,0.2123048,96484.0,96483.0,0.41083952]
[1740192227631,0.2123048,96484.0,96483.0,0.39463705]
[1740192230239,0.2123048,96484.0,96483.0,0.2093069]
[1740192233034,0.2123048,96484.0,96483.0,0.002]
[1740192233540,0.2123048,96484.0,96483.0,0.2093069]
[1740192238533,0.2123048,96484.0,96483.0,0.5701069]
[1740192239432,0.2123048,96484.0,96483.0,0.3628]
[1740192239627,0.2123048,96484.0,96483.0,0.5701069]
[1740192241839,0.2123048,96484.0,96483.0,0.3628]
[1740192242047,0.2123048,96484.0,96483.0,0.5701069]
[1740192242635,0.2123048,96484.0,96483.0,0.3628]
[1740192242838,0.2123048,96484.0,96483.0,0.5701069]
[1740192243137,0.2123048,96484.0,96483.0,0.3628]
[1740192243539,0.2123048,96484.0,96483.0,0.5701069]
[1740192244039,0.2123048,96484.0,96483.0,0.3628]
[1740192244245,0.2123048,96484.0,96483.0,0.5701069]
[1740192247735,0.2123048,96484.0,96483.0,0.3628]
[1740192249048,0.2123048,96484.0,96483.0,0.5701069]
[1740192254642,0.005,96484.0,96483.0,0.5701069]
[1740192255050,0.2123048,96484.0,96483.0,0.5701069]
[1740192256849,0.2123048,96484.0,96483.0,0.3628]
[1740192257054,0.2123048,96484.0,96483.0,0.5701069]
[1740192263755,0.2123048,96484.0,96483.0,0.3628]
[1740192263960,0.2123048,96484.0,96483.0,0.54860382]
[1740192265154,0.2123048,96484.0,96483.0,0.75591072]
[1740192267858,0.2123048,96484.0,96483.0,0.39511072]
[1740192268059,0.2123048,96484.0,96483.0,0.75591072]
[1740192270961,0.2123048,96484.0,96483.0,0.54860382]
[1740192271264,0.2123048,96484.0,96483.0,0.5701069]
[1740192271657,0.2123048,96484.0,96483.0,0.2093069]
[1740192271863,0.2123048,96484.0,96483.0,0.5701069]
[1740192276167,0.2123048,96484.0,96483.0,0.2093069]
[1740192276369,0.2123048,96484.0,96483.0,0.5701069]
[1740192284666,0.2123048,96484.0,96483.0,0.3628]
[1740192285772,0.2123048,96484.0,96483.0,0.5701069]
[1740192286276,0.2123048,96484.0,96483.0,0.6011069]
[1740192288369,0.2123048,96484.0,96483.0,0.3938]
[1740192288678,0.2123048,96484.0,96483.0,0.5701069]
[1740192295574,0.2123048,96484.0,96483.0,0.75594177]
[1740192297984,0.2123048,96484.0,96483.0,0.5701069]
[1740192300986,0.2123048,96484.0,96483.0,0.2093069]
[1740192301690,0.2123048,96484.0,96483.0,0.002]
[1740192301987,0.2123048,96484.0,96483.0,0.2093069]
[1740192309597,0.2123048,96484.0,96483.0,0.002]
[1740192309891,0.2123048,96484.0,96483.0,0.2093069]
[1740192310093,0.2123048,96484.0,96483.0,0.002]
[1740192310786,0.2073134,96480.0,96479.0,0.0016811]
[1740192310982,0.2073241,96475.0,96455.0,0.36235501]
[1740192311385,0.2403241,96475.0,96455.0,0.36235501]
[1740192311583,0.2403241,96475.0,96455.0,0.37235501]
[1740192311986,0.2393241,96475.0,96455.0,0.37235501]
[1740192312688,0.2433241,96475.0,96474.0,0.30988358]
[1740192312885,0.2463241,96475.0,96474.0,0.31088358]
[1740192313991,0.2772241,96475.0,96474.0,0.31088358]
[1740192314299,0.3072241,96475.0,96474.0,0.31088358]
[1740192314899,0.3072241,96475.0,96474.0,0.17726028]
[1740192315092,0.1527314,96475.0,96455.0,0.00155501]
[1740192315293,0.5681478,96464.0,96455.0,0.00155501]
[1740192315488,0.207365,96456.0,96455.0,0.00155501]
[1740192315683,0.568165,96456.0,96455.0,0.00155501]
[1740192316899,0.572165,96456.0,96455.0,0.00255501]
[1740192317801,0.58676452,96456.0,96455.0,0.00255501]
[1740192318097,0.59376452,96456.0,96455.0,0.00255501]
[1740192318693,0.58676452,96456.0,96455.0,0.00255501]
[1740192318893,0.59676452,96456.0,96455.0,0.00255501]
[1740192319287,0.59676452,96456.0,96446.0,0.00015545]
[1740192319288,0.38939952,96456.0,96446.0,0.00015545]
[1740192319499,0.5681843,96447.0,96446.0,0.00015545]
[1740192320093,0.6657843,96447.0,96446.0,5e-08]
[1740192321689,2.1657843,96447.0,96446.0,5e-08]
[1740192321889,2.1717843,96447.0,96446.0,5e-08]
[1740192322096,2.1767843,96447.0,96446.0,5e-08]
[1740192323491,0.2074187,96431.0,96430.0,0.18557439]
[1740192323702,0.5682187,96431.0,96430.0,0.18557439]
[1740192323999,0.5682187,96431.0,96420.0,0.2074413]
[1740192324000,0.2074402,96421.0,96420.0,0.2074413]
[1740192324196,0.0518596,96422.0,96414.0,0.0324]
[1740192324393,0.5682531,96415.0,96414.0,0.2917057]
[1740192325702,0.5682531,96415.0,96414.0,0.2937057]
[1740192326094,0.2074531,96415.0,96414.0,0.2937057]
[1740192326298,0.2074531,96415.0,96414.0,0.2957057]
[1740192327900,0.5682531,96415.0,96414.0,0.004]
[1740192328095,0.6317531,96415.0,96414.0,0.004]
[1740192330403,0.5987531,96415.0,96414.0,0.004]
[1740192335301,0.9595531,96415.0,96414.0,0.004]
[1740192339803,0.9290531,96415.0,96414.0,0.004]
[1740192352219,0.9290531,96415.0,96414.0,1e-07]
[1740192358709,2.4290531,96415.0,96414.0,1e-07]
[1740192359324,0.9290531,96415.0,96414.0,1e-07]
[1740192363514,0.2074596,96412.0,96411.0,0.02593]
[1740192363910,0.2074704,96407.0,96406.0,0.21787439]
[1740192364120,0.5682704,96407.0,96406.0,0.21787439]
[1740192365218,0.5692704,96407.0,96406.0,0.21787439]
[1740192366826,0.5702704,96407.0,96406.0,0.21787439]
[1740192368534,0.5702704,96407.0,96406.0,0.18557439]
[1740192369525,0.3628,96407.0,96405.0,0.00015554]
[1740192369718,0.3109525,96406.0,96405.0,0.00015554]
[1740192371331,0.3119525,96406.0,96405.0,0.00015554]
[1740192372531,0.3129525,96406.0,96405.0,0.00015554]
[1740192374027,0.36340524,96406.0,96405.0,0.00015554]
[1740192375435,1.08500524,96406.0,96405.0,0.00015554]
[1740192376033,0.98152524,96406.0,96405.0,0.00015554]
[1740192376331,0.98152524,96406.0,96405.0,0.20763024]
[1740192376724,0.62072524,96406.0,96405.0,0.20763024]
[1740192377638,0.5702725,96406.0,96405.0,0.20763024]
[1740192378027,0.5702725,96406.0,96405.0,0.00015554]
[1740192382032,0.5702725,96406.0,96405.0,0.20763024]
[1740192383238,0.2094725,96406.0,96405.0,0.20763024]
[1740192387740,0.5702725,96406.0,96405.0,0.20763024]
[1740192389041,0.2094725,96406.0,96405.0,0.20763024]
[1740192398647,0.2094725,96406.0,96405.0,0.23863024]
[1740192405637,0.2094725,96406.0,96405.0,0.27093024]
[1740192406451,0.2094725,96406.0,96405.0,0.45709982]
[1740192409053,0.2094725,96406.0,96405.0,0.27093024]
[1740192428277,0.2094725,96406.0,96405.0,0.00015554]
[1740192428582,0.207479,96403.0,96402.0,0.02593]
[1740192429081,0.2074811,96402.0,96401.0,0.24865928]
[1740192431578,0.2392811,96402.0,96401.0,0.24965928]
[1740192432177,0.6000811,96402.0,96401.0,0.24965928]
[1740192432886,0.6000811,96402.0,96401.0,0.001]
[1740192437690,0.2074876,96399.0,96398.0,0.02593]
[1740192438088,0.2075005,96393.0,96392.0,0.18653291]
[1740192438276,0.5683005,96393.0,96392.0,0.18653291]
[1740192438584,0.6322005,96393.0,96392.0,0.18653291]
[1740192440676,0.6362005,96393.0,96392.0,0.18653291]
[1740192440881,0.6392005,96393.0,96392.0,0.18653291]
[1740192441589,0.6392005,96393.0,96392.0,0.00015554]
[1740192444293,1.0000005,96393.0,96392.0,0.00015554]
[1740192454282,0.2784005,96393.0,96392.0,0.00015554]
[1740192454491,1.0000005,96393.0,96392.0,0.00015554]
[1740192454893,1.1034005,96393.0,96392.0,0.00015554]
[1740192456691,1.1034005,96393.0,96392.0,4e-08]
[1740192459091,0.3818005,96393.0,96392.0,4e-08]
[1740192459287,1.1034005,96393.0,96392.0,4e-08]
[1740192459498,1.15386259,96393.0,96392.0,4e-08]
[1740192459898,0.43226259,96393.0,96392.0,4e-08]
[1740192460100,0.94636209,96393.0,96390.0,1e-08]
[1740192460294,0.94636209,96393.0,96377.0,0.0311]
[1740192460494,0.5683328,96378.0,96377.0,0.0311]
[1740192461604,0.5683328,96378.0,96377.0,0.0331]
[1740192463302,0.5683328,96378.0,96377.0,0.0656]
[1740192463599,0.5683328,96378.0,96377.0,0.0636]
[1740192464406,0.58087972,96378.0,96377.0,0.0636]
[1740192472500,0.22007972,96378.0,96377.0,0.0636]